[Event "Titled Tuesday Blitz August 22 Early 2023"]
[White "Efremov, Vladislav"]
[Black "Warchol, Kamil"]
[WhiteFideId "44159935"]
[BlackFideId "21858241"]
[WhiteElo "2389"]
[BlackElo "2498"]
[Result "0-1"]
[Round "9"]
[TimeControl "180+1"]
[Date "2023.08.22"]
[WhiteClock "0:00:13"]
[BlackClock "0:00:15"]
[Board "119"]

1. c4 {[%clk 0:03:00]}  e5 {[%clk 0:02:59]} 2. Nc3 {[%clk 0:03:00]}  Nf6 {[%clk 0:02:59]} 3. g3 {[%clk 0:03:00]}  c6 {[%clk 0:02:59]} 4. Bg2 {[%clk 0:02:59]}  d5 {[%clk 0:02:58]} 5. cxd5 {[%clk 0:02:59]}  cxd5 {[%clk 0:02:59]} 6. e3 {[%clk 0:02:59]}  d4 {[%clk 0:02:57]} 7. Ne4 {[%clk 0:02:53]}  Nxe4 {[%clk 0:02:52]} 8. Bxe4 {[%clk 0:02:53]}  dxe3 {[%clk 0:02:50]} 9. dxe3 {[%clk 0:02:47]}  Bb4+ {[%clk 0:02:47]} 10. Bd2 {[%clk 0:02:46]}  Bxd2+ {[%clk 0:02:44]} 11. Qxd2 {[%clk 0:02:47]}  Qxd2+ {[%clk 0:02:45]} 12. Kxd2 {[%clk 0:02:48]}  O-O {[%clk 0:02:43]} 13. Nf3 {[%clk 0:02:46]}  Nd7 {[%clk 0:02:21]} 14. Ke2 {[%clk 0:02:25]}  Nc5 {[%clk 0:02:14]} 15. Bd5 {[%clk 0:02:19]}  e4 {[%clk 0:01:58]} 16. Nd4 {[%clk 0:02:15]}  Rd8 {[%clk 0:01:52]} 17. Bc4 {[%clk 0:02:13]}  Bg4+ {[%clk 0:01:51]} 18. Kf1 {[%clk 0:02:08]}  Rac8 {[%clk 0:01:43]} 19. Kg2 {[%clk 0:01:58]}  Na4 {[%clk 0:01:33]} 20. Rac1 {[%clk 0:01:51]}  Nxb2 {[%clk 0:01:32]} 21. Bb3 {[%clk 0:01:43]}  Nd3 {[%clk 0:01:28]} 22. Rxc8 {[%clk 0:01:33]}  Rxc8 {[%clk 0:01:29]} 23. Rb1 {[%clk 0:01:30]}  b6 {[%clk 0:01:25]} 24. Bd5 {[%clk 0:01:28]}  Nc5 {[%clk 0:01:20]} 25. Rc1 {[%clk 0:01:26]}  Rd8 {[%clk 0:01:19]} 26. Bc6 {[%clk 0:01:24]}  Bd7 {[%clk 0:01:14]} 27. Bxd7 {[%clk 0:01:20]}  Rxd7 {[%clk 0:01:15]} 28. a4 {[%clk 0:01:16]}  g6 {[%clk 0:01:02]} 29. a5 {[%clk 0:01:16]}  Kg7 {[%clk 0:01:00]} 30. Rc4 {[%clk 0:01:08]}  Kf6 {[%clk 0:00:58]} 31. Kf1 {[%clk 0:01:02]}  Ke5 {[%clk 0:00:54]} 32. Rb4 {[%clk 0:00:48]}  Rb7 {[%clk 0:00:44]} 33. axb6 {[%clk 0:00:43]}  Rxb6 {[%clk 0:00:37]} 34. Rc4 {[%clk 0:00:43]}  Kd5 {[%clk 0:00:37]} 35. Rc2 {[%clk 0:00:37]}  a5 {[%clk 0:00:33]} 36. Ke2 {[%clk 0:00:35]}  a4 {[%clk 0:00:33]} 37. f3 {[%clk 0:00:33]}  a3 {[%clk 0:00:31]} 38. Kd2 {[%clk 0:00:28]}  exf3 {[%clk 0:00:27]} 39. Nxf3 {[%clk 0:00:25]}  Ne4+ {[%clk 0:00:26]} 40. Kd3 {[%clk 0:00:25]}  Nc5+ {[%clk 0:00:23]} 41. Kd2 {[%clk 0:00:25]}  Nb3+ {[%clk 0:00:22]} 42. Kc3 {[%clk 0:00:22]}  Na5 {[%clk 0:00:21]} 43. Nd4 {[%clk 0:00:19]}  Nc6 {[%clk 0:00:18]} 44. Ra2 {[%clk 0:00:18]}  Nxd4 {[%clk 0:00:18]} 45. exd4 {[%clk 0:00:19]}  Rc6+ {[%clk 0:00:18]} 46. Kd3 {[%clk 0:00:19]}  Ra6 {[%clk 0:00:18]} 47. Kc3 {[%clk 0:00:19]}  Ra4 {[%clk 0:00:18]} 48. h3 {[%clk 0:00:17]}  h5 {[%clk 0:00:16]} 49. Kb3 {[%clk 0:00:18]}  Rxd4 {[%clk 0:00:16]} 50. Kxa3 {[%clk 0:00:18]}  Rd3+ {[%clk 0:00:16]} 51. Kb4 {[%clk 0:00:19]}  Rxg3 {[%clk 0:00:17]} 52. Rf2 {[%clk 0:00:19]}  Ke6 {[%clk 0:00:16]} 53. Rh2 {[%clk 0:00:18]}  Kf5 {[%clk 0:00:15]} 54. Kc4 {[%clk 0:00:18]}  Kg5 {[%clk 0:00:16]} 55. Kd4 {[%clk 0:00:18]}  Kh4 {[%clk 0:00:16]} 56. Rf2 {[%clk 0:00:19]}  f5 {[%clk 0:00:15]} 57. Ke5 {[%clk 0:00:19]}  Kxh3 {[%clk 0:00:15]} 58. Kf6 {[%clk 0:00:16]}  h4 {[%clk 0:00:15]} 59. Rf1 {[%clk 0:00:15]}  Kg2 {[%clk 0:00:15]} 60. Ra1 {[%clk 0:00:14]}  h3 {[%clk 0:00:15]} 61. Ra2+ {[%clk 0:00:15]}  Kf3 {[%clk 0:00:15]} 62. Ra3+ {[%clk 0:00:15]}  Kg4 {[%clk 0:00:14]} 63. Ra4+ {[%clk 0:00:14]}  f4 {[%clk 0:00:14]} 64. Kxg6 {[%clk 0:00:15]}  h2 {[%clk 0:00:14]} 65. Ra1 {[%clk 0:00:12]}  Rg1 {[%clk 0:00:14]} 66. Kh6 {[%clk 0:00:11]}  Rxa1 {[%clk 0:00:13]} 67. Kg7 {[%clk 0:00:11]}  h1=Q {[%clk 0:00:13]} 68. Kg6 {[%clk 0:00:11]}  Qd5 {[%clk 0:00:13]} 69. Kf6 {[%clk 0:00:12]}  Ra6+ {[%clk 0:00:13]} 70. Ke7 {[%clk 0:00:12]}  Qb7+ {[%clk 0:00:14]} 71. Kd8 {[%clk 0:00:13]}  Ra8# {[%clk 0:00:15]} 0-1


[Site "https://www.chess.com"]

[Event "Titled Tuesday Blitz August 22 Early 2023"]
[White "Womacka, Mathias"]
[Black "Pavlidis, Anastasios"]
[WhiteFideId "4611390"]
[BlackFideId "4208404"]
[WhiteElo "2451"]
[BlackElo "2332"]
[Result "1-0"]
[Round "9"]
[TimeControl "180+1"]
[Date "2023.08.22"]
[WhiteClock "0:02:06"]
[BlackClock "0:00:00"]
[Board "122"]

1. e4 {[%clk 0:02:58]}  c5 {[%clk 0:02:59]} 2. Nf3 {[%clk 0:02:58]}  d6 {[%clk 0:02:59]} 3. d4 {[%clk 0:02:58]}  cxd4 {[%clk 0:02:59]} 4. Nxd4 {[%clk 0:02:59]}  Nf6 {[%clk 0:03:00]} 5. Nc3 {[%clk 0:02:58]}  g6 {[%clk 0:03:00]} 6. Be3 {[%clk 0:02:57]}  Bg7 {[%clk 0:03:00]} 7. f3 {[%clk 0:02:57]}  O-O {[%clk 0:03:00]} 8. Qd2 {[%clk 0:02:58]}  Nc6 {[%clk 0:03:00]} 9. O-O-O {[%clk 0:02:58]}  d5 {[%clk 0:03:00]} 10. exd5 {[%clk 0:02:59]}  Nxd5 {[%clk 0:03:00]} 11. Nxc6 {[%clk 0:03:00]}  bxc6 {[%clk 0:03:00]} 12. Bd4 {[%clk 0:03:00]}  Nxc3 {[%clk 0:02:54]} 13. Qxc3 {[%clk 0:03:00]}  Bh6+ {[%clk 0:02:53]} 14. Be3 {[%clk 0:03:00]}  Bxe3+ {[%clk 0:02:53]} 15. Qxe3 {[%clk 0:03:01]}  Qb6 {[%clk 0:02:53]} 16. Qxe7 {[%clk 0:03:00]}  Bf5 {[%clk 0:02:52]} 17. Bc4 {[%clk 0:02:51]}  Rab8 {[%clk 0:02:50]} 18. b3 {[%clk 0:02:42]}  Qa5 {[%clk 0:02:18]} 19. g4 {[%clk 0:02:24]}  Be6 {[%clk 0:00:09]} 20. Bxe6 {[%clk 0:02:20]}  fxe6 {[%clk 0:00:00]} 21. Rd7 {[%clk 0:02:06]} 1-0


[Site "https://www.chess.com"]

[Event "Titled Tuesday Blitz August 22 Early 2023"]
[White "Carroll, Thomas"]
[Black "Tiarks, Jann-Christian"]
[WhiteFideId "450111"]
[BlackFideId "12951595"]
[WhiteElo "2440"]
[BlackElo "2316"]
[Result "0-1"]
[Round "9"]
[TimeControl "180+1"]
[Date "2023.08.22"]
[WhiteClock "0:00:17"]
[BlackClock "0:00:59"]
[Board "124"]

1. c4 {[%clk 0:03:00]}  e5 {[%clk 0:02:58]} 2. Nc3 {[%clk 0:03:01]}  Nf6 {[%clk 0:02:57]} 3. g3 {[%clk 0:03:01]}  c6 {[%clk 0:02:57]} 4. d4 {[%clk 0:02:59]}  e4 {[%clk 0:02:56]} 5. d5 {[%clk 0:02:59]}  Bb4 {[%clk 0:02:54]} 6. Bg5 {[%clk 0:02:54]}  h6 {[%clk 0:02:52]} 7. Bxf6 {[%clk 0:02:54]}  Qxf6 {[%clk 0:02:53]} 8. Rc1 {[%clk 0:02:52]}  O-O {[%clk 0:02:42]} 9. Bg2 {[%clk 0:02:52]}  Qe5 {[%clk 0:02:41]} 10. e3 {[%clk 0:02:48]}  f5 {[%clk 0:02:39]} 11. Ne2 {[%clk 0:02:49]}  d6 {[%clk 0:02:37]} 12. O-O {[%clk 0:02:44]}  Nd7 {[%clk 0:02:35]} 13. Qd4 {[%clk 0:02:36]}  c5 {[%clk 0:02:33]} 14. Qd1 {[%clk 0:02:27]}  a6 {[%clk 0:02:28]} 15. Nf4 {[%clk 0:02:25]}  Nf6 {[%clk 0:02:25]} 16. Ng6 {[%clk 0:02:24]}  Qe8 {[%clk 0:02:24]} 17. Nxf8 {[%clk 0:02:24]}  Qxf8 {[%clk 0:02:25]} 18. Ne2 {[%clk 0:02:13]}  Bd7 {[%clk 0:02:22]} 19. Nf4 {[%clk 0:02:11]}  Qe7 {[%clk 0:02:19]} 20. a3 {[%clk 0:02:08]}  Ba5 {[%clk 0:02:19]} 21. Rb1 {[%clk 0:02:08]}  g5 {[%clk 0:02:17]} 22. Ne2 {[%clk 0:02:02]}  Bc7 {[%clk 0:02:14]} 23. b4 {[%clk 0:02:02]}  b6 {[%clk 0:02:15]} 24. bxc5 {[%clk 0:02:01]}  dxc5 {[%clk 0:02:11]} 25. Nc3 {[%clk 0:01:59]}  Qe5 {[%clk 0:02:06]} 26. Qd2 {[%clk 0:01:59]}  Rf8 {[%clk 0:02:03]} 27. d6 {[%clk 0:01:50]}  Bxd6 {[%clk 0:02:03]} 28. Rfd1 {[%clk 0:01:48]}  Bc7 {[%clk 0:02:00]} 29. Nd5 {[%clk 0:01:47]}  Nxd5 {[%clk 0:01:59]} 30. Qxd5+ {[%clk 0:01:41]}  Qxd5 {[%clk 0:01:55]} 31. cxd5 {[%clk 0:01:37]}  b5 {[%clk 0:01:54]} 32. d6 {[%clk 0:01:33]}  Ba5 {[%clk 0:01:49]} 33. g4 {[%clk 0:01:31]}  c4 {[%clk 0:01:48]} 34. gxf5 {[%clk 0:01:31]}  c3 {[%clk 0:01:48]} 35. Bxe4 {[%clk 0:01:29]}  Bxf5 {[%clk 0:01:48]} 36. Bxf5 {[%clk 0:01:23]}  Rxf5 {[%clk 0:01:48]} 37. d7 {[%clk 0:01:23]}  Rf8 {[%clk 0:01:48]} 38. Rd6 {[%clk 0:01:18]}  Rd8 {[%clk 0:01:45]} 39. Rxa6 {[%clk 0:01:16]}  Rxd7 {[%clk 0:01:42]} 40. Rc1 {[%clk 0:00:56]}  Rd2 {[%clk 0:01:34]} 41. Rxa5 {[%clk 0:00:52]}  c2 {[%clk 0:01:33]} 42. Ra8+ {[%clk 0:00:52]}  Kg7 {[%clk 0:01:32]} 43. Rc8 {[%clk 0:00:53]}  Rd1+ {[%clk 0:01:32]} 44. Kg2 {[%clk 0:00:46]}  Rxc1 {[%clk 0:01:33]} 45. Rc5 {[%clk 0:00:44]}  Kf6 {[%clk 0:01:29]} 46. Kf3 {[%clk 0:00:37]}  Ke6 {[%clk 0:01:28]} 47. e4 {[%clk 0:00:32]}  Kd6 {[%clk 0:01:26]} 48. Rc8 {[%clk 0:00:32]}  Kd7 {[%clk 0:01:26]} 49. Rc5 {[%clk 0:00:32]}  Kd6 {[%clk 0:01:26]} 50. Rc8 {[%clk 0:00:33]}  Rh1 {[%clk 0:01:18]} 51. Rxc2 {[%clk 0:00:30]}  Rxh2 {[%clk 0:01:18]} 52. Rd2+ {[%clk 0:00:25]}  Ke6 {[%clk 0:01:08]} 53. Rb2 {[%clk 0:00:20]}  Rh3+ {[%clk 0:01:08]} 54. Kg4 {[%clk 0:00:20]}  Rxa3 {[%clk 0:01:09]} 55. Rxb5 {[%clk 0:00:20]}  Ra2 {[%clk 0:01:05]} 56. f3 {[%clk 0:00:20]}  Rg2+ {[%clk 0:01:02]} 57. Kh3 {[%clk 0:00:20]}  Rg1 {[%clk 0:01:01]} 58. Rb6+ {[%clk 0:00:20]}  Ke5 {[%clk 0:01:02]} 59. Rxh6 {[%clk 0:00:20]}  g4+ {[%clk 0:01:00]} 60. fxg4 {[%clk 0:00:17]}  Rh1+ {[%clk 0:00:59]} 0-1


[Site "https://www.chess.com"]

[Event "Titled Tuesday Blitz August 22 Early 2023"]
[White "Hrescak, Ivana"]
[Black "Begunov, Konstantin"]
[WhiteFideId "14613441"]
[BlackFideId "4118510"]
[WhiteElo "2305"]
[BlackElo "2435"]
[Result "0-1"]
[Round "9"]
[TimeControl "180+1"]
[Date "2023.08.22"]
[WhiteClock "0:00:00"]
[BlackClock "0:00:18"]
[Board "125"]

1. e4 {[%clk 0:03:00]}  c5 {[%clk 0:02:51]} 2. Nf3 {[%clk 0:03:00]}  d6 {[%clk 0:02:51]} 3. c3 {[%clk 0:02:59]}  Nf6 {[%clk 0:02:51]} 4. Be2 {[%clk 0:02:55]}  Nc6 {[%clk 0:02:48]} 5. d4 {[%clk 0:02:56]}  cxd4 {[%clk 0:02:46]} 6. cxd4 {[%clk 0:02:56]}  d5 {[%clk 0:02:46]} 7. e5 {[%clk 0:02:55]}  Ne4 {[%clk 0:02:46]} 8. O-O {[%clk 0:02:52]}  Bg4 {[%clk 0:02:44]} 9. h3 {[%clk 0:02:50]}  Bh5 {[%clk 0:02:42]} 10. Nbd2 {[%clk 0:02:38]}  e6 {[%clk 0:02:37]} 11. Re1 {[%clk 0:02:34]}  Qb6 {[%clk 0:02:28]} 12. Nxe4 {[%clk 0:02:24]}  dxe4 {[%clk 0:02:26]} 13. Nd2 {[%clk 0:02:05]}  Bg6 {[%clk 0:01:56]} 14. Bh5 {[%clk 0:01:40]}  Qxd4 {[%clk 0:01:37]} 15. Bxg6 {[%clk 0:01:38]}  hxg6 {[%clk 0:01:38]} 16. Rxe4 {[%clk 0:01:33]}  Qd5 {[%clk 0:01:36]} 17. Qe1 {[%clk 0:00:42]}  Nd4 {[%clk 0:01:23]} 18. Nb3 {[%clk 0:00:24]}  Nc2 {[%clk 0:01:18]} 19. Qe2 {[%clk 0:00:15]}  Nxa1 {[%clk 0:01:15]} 20. Nxa1 {[%clk 0:00:15]}  Rc8 {[%clk 0:01:11]} 21. Bf4 {[%clk 0:00:13]}  Qc5 {[%clk 0:00:58]} 22. Nb3 {[%clk 0:00:12]}  Qd5 {[%clk 0:00:49]} 23. Rd4 {[%clk 0:00:11]}  Qc6 {[%clk 0:00:42]} 24. Kh2 {[%clk 0:00:09]}  Be7 {[%clk 0:00:40]} 25. Na5 {[%clk 0:00:07]}  Qb6 {[%clk 0:00:33]} 26. Nb3 {[%clk 0:00:07]}  O-O {[%clk 0:00:31]} 27. h4 {[%clk 0:00:06]}  Rfd8 {[%clk 0:00:30]} 28. Re4 {[%clk 0:00:06]}  Qa6 {[%clk 0:00:22]} 29. Qf3 {[%clk 0:00:06]}  Qxa2 {[%clk 0:00:20]} 30. h5 {[%clk 0:00:06]}  gxh5 {[%clk 0:00:19]} 31. Nd4 {[%clk 0:00:06]}  Qb1 {[%clk 0:00:20]} 32. Re3 {[%clk 0:00:03]}  Qg6 {[%clk 0:00:19]} 33. Ne2 {[%clk 0:00:03]}  Qg4 {[%clk 0:00:20]} 34. Qe4 {[%clk 0:00:02]}  Rc5 {[%clk 0:00:18]} 35. Rg3 {[%clk 0:00:03]}  Qf5 {[%clk 0:00:18]} 36. Qf3 {[%clk 0:00:03]}  Rdd5 {[%clk 0:00:18]} 37. Ng1 {[%clk 0:00:02]}  Rc4 {[%clk 0:00:18]} 38. Nh3 {[%clk 0:00:00]}  Re4 {[%clk 0:00:18]} 0-1


[Site "https://www.chess.com"]

[Event "Titled Tuesday Blitz August 22 Early 2023"]
[White "Pershina, Elena"]
[Black "Zampronha, Wladimir Camilo"]
[WhiteFideId "24147516"]
[BlackFideId "2103087"]
[WhiteElo "2427"]
[BlackElo "2293"]
[Result "1/2-1/2"]
[Round "9"]
[TimeControl "180+1"]
[Date "2023.08.22"]
[WhiteClock "0:00:10"]
[BlackClock "0:00:23"]
[Board "126"]

1. c4 {[%clk 0:03:00]}  Nf6 {[%clk 0:02:59]} 2. g3 {[%clk 0:03:00]}  e6 {[%clk 0:02:59]} 3. Bg2 {[%clk 0:03:00]}  d5 {[%clk 0:03:00]} 4. Nf3 {[%clk 0:02:59]}  d4 {[%clk 0:02:57]} 5. O-O {[%clk 0:02:57]}  c5 {[%clk 0:02:55]} 6. d3 {[%clk 0:02:56]}  Nc6 {[%clk 0:02:51]} 7. e3 {[%clk 0:02:54]}  Be7 {[%clk 0:02:45]} 8. exd4 {[%clk 0:02:53]}  cxd4 {[%clk 0:02:46]} 9. a3 {[%clk 0:02:48]}  a5 {[%clk 0:02:44]} 10. Bg5 {[%clk 0:02:43]}  Nd7 {[%clk 0:02:39]} 11. Bxe7 {[%clk 0:02:42]}  Qxe7 {[%clk 0:02:39]} 12. Nbd2 {[%clk 0:02:41]}  O-O {[%clk 0:02:37]} 13. Re1 {[%clk 0:02:40]}  Nc5 {[%clk 0:02:26]} 14. Qc2 {[%clk 0:02:32]}  Rd8 {[%clk 0:02:21]} 15. Rab1 {[%clk 0:02:25]}  a4 {[%clk 0:02:21]} 16. h4 {[%clk 0:01:45]}  h6 {[%clk 0:02:18]} 17. Ne5 {[%clk 0:01:43]}  Nxe5 {[%clk 0:02:14]} 18. Rxe5 {[%clk 0:01:44]}  Qd6 {[%clk 0:02:11]} 19. Rbe1 {[%clk 0:01:39]}  Ra6 {[%clk 0:01:55]} 20. h5 {[%clk 0:01:28]}  f6 {[%clk 0:01:47]} 21. R5e2 {[%clk 0:01:25]}  e5 {[%clk 0:01:47]} 22. Bf3 {[%clk 0:01:14]}  Bd7 {[%clk 0:01:41]} 23. Kg2 {[%clk 0:01:13]}  Bc6 {[%clk 0:01:40]} 24. Ne4 {[%clk 0:01:09]}  Nxe4 {[%clk 0:01:40]} 25. Bxe4 {[%clk 0:01:10]}  Bxe4+ {[%clk 0:01:40]} 26. Rxe4 {[%clk 0:01:11]}  Qd7 {[%clk 0:01:34]} 27. c5 {[%clk 0:01:08]}  Qd5 {[%clk 0:01:30]} 28. Kg1 {[%clk 0:00:56]}  Rc8 {[%clk 0:01:30]} 29. Rc1 {[%clk 0:00:54]}  Qf7 {[%clk 0:01:21]} 30. Qc4 {[%clk 0:00:52]}  Rac6 {[%clk 0:01:16]} 31. Qxa4 {[%clk 0:00:44]}  Qxh5 {[%clk 0:01:14]} 32. b4 {[%clk 0:00:40]}  Qf3 {[%clk 0:01:13]} 33. Qd1 {[%clk 0:00:39]}  Qf5 {[%clk 0:01:10]} 34. Re2 {[%clk 0:00:35]}  b6 {[%clk 0:01:09]} 35. Rec2 {[%clk 0:00:33]}  bxc5 {[%clk 0:01:01]} 36. Rxc5 {[%clk 0:00:33]}  Rxc5 {[%clk 0:01:01]} 37. Rxc5 {[%clk 0:00:34]}  Rxc5 {[%clk 0:00:52]} 38. bxc5 {[%clk 0:00:35]}  e4 {[%clk 0:00:53]} 39. dxe4 {[%clk 0:00:31]}  Qxe4 {[%clk 0:00:52]} 40. Qb3+ {[%clk 0:00:28]}  Kh7 {[%clk 0:00:51]} 41. c6 {[%clk 0:00:22]}  Qxc6 {[%clk 0:00:43]} 42. Qd3+ {[%clk 0:00:21]}  Kh8 {[%clk 0:00:42]} 43. Qxd4 {[%clk 0:00:21]}  Qc1+ {[%clk 0:00:41]} 44. Kg2 {[%clk 0:00:20]}  Qxa3 {[%clk 0:00:42]} 45. Qd8+ {[%clk 0:00:19]}  Kh7 {[%clk 0:00:41]} 46. Qd5 {[%clk 0:00:19]}  Qf8 {[%clk 0:00:39]} 47. Qe4+ {[%clk 0:00:19]}  Kh8 {[%clk 0:00:38]} 48. Qd5 {[%clk 0:00:19]}  Qg8 {[%clk 0:00:39]} 49. Qe4 {[%clk 0:00:19]}  Qf8 {[%clk 0:00:33]} 50. Qf5 {[%clk 0:00:18]}  Kg8 {[%clk 0:00:32]} 51. Qe6+ {[%clk 0:00:17]}  Qf7 {[%clk 0:00:31]} 52. Qc8+ {[%clk 0:00:17]}  Kh7 {[%clk 0:00:31]} 53. Qf5+ {[%clk 0:00:17]}  g6 {[%clk 0:00:31]} 54. Qe4 {[%clk 0:00:16]}  Kg7 {[%clk 0:00:32]} 55. Qc6 {[%clk 0:00:16]}  Qe7 {[%clk 0:00:31]} 56. Qd5 {[%clk 0:00:16]}  h5 {[%clk 0:00:30]} 57. Qc6 {[%clk 0:00:15]}  f5 {[%clk 0:00:29]} 58. Qc3+ {[%clk 0:00:13]}  Kh6 {[%clk 0:00:27]} 59. Qd2+ {[%clk 0:00:13]}  Kg7 {[%clk 0:00:28]} 60. Qc3+ {[%clk 0:00:12]}  Qf6 {[%clk 0:00:27]} 61. Qc7+ {[%clk 0:00:12]}  Kh6 {[%clk 0:00:27]} 62. Qc1+ {[%clk 0:00:11]}  Qg5 {[%clk 0:00:26]} 63. Qc8 {[%clk 0:00:11]}  Qf6 {[%clk 0:00:23]} 64. Qc1+ {[%clk 0:00:10]}  Kg7 {[%clk 0:00:23]} 65. Qc7+ {[%clk 0:00:10]}  Kf8 {[%clk 0:00:23]} 66. Qc8+ {[%clk 0:00:10]}  Ke7 {[%clk 0:00:23]} 67. Qc7+ {[%clk 0:00:10]}  Kf8 {[%clk 0:00:23]} 68. Qc8+ {[%clk 0:00:10]}  Kf7 {[%clk 0:00:23]} 69. Qc7+ {[%clk 0:00:11]}  Qe7 {[%clk 0:00:23]} 70. Qc4+ {[%clk 0:00:11]}  Kf6 {[%clk 0:00:23]} 71. Qc3+ {[%clk 0:00:10]}  Qe5 {[%clk 0:00:23]} 72. Qc6+ {[%clk 0:00:11]}  Qe6 {[%clk 0:00:23]} 73. Qc3+ {[%clk 0:00:11]}  Kf7 {[%clk 0:00:23]} 74. Qc7+ {[%clk 0:00:10]}  Qe7 {[%clk 0:00:23]} 75. Qc4+ {[%clk 0:00:10]}  Kg7 {[%clk 0:00:23]} 76. Qc3+ {[%clk 0:00:10]} 1/2-1/2


[Site "https://www.chess.com"]

[Event "Titled Tuesday Blitz August 22 Early 2023"]
[White "Buchenau, Frank"]
[Black "Fernandez Hernandez, Gerardo"]
[WhiteFideId "4604350"]
[BlackFideId "2207400"]
[WhiteElo "2427"]
[BlackElo "2272"]
[Result "1-0"]
[Round "9"]
[TimeControl "180+1"]
[Date "2023.08.22"]
[WhiteClock "0:01:28"]
[BlackClock "0:00:11"]
[Board "127"]

1. e4 {[%clk 0:03:00]}  e6 {[%clk 0:02:59]} 2. Nf3 {[%clk 0:02:57]}  d5 {[%clk 0:03:00]} 3. Nc3 {[%clk 0:02:58]}  Nf6 {[%clk 0:02:59]} 4. e5 {[%clk 0:02:58]}  Nfd7 {[%clk 0:02:59]} 5. d4 {[%clk 0:02:58]}  c5 {[%clk 0:03:00]} 6. dxc5 {[%clk 0:02:59]}  Nc6 {[%clk 0:03:00]} 7. Bf4 {[%clk 0:02:59]}  Bxc5 {[%clk 0:03:00]} 8. Bd3 {[%clk 0:02:59]}  f6 {[%clk 0:02:54]} 9. exf6 {[%clk 0:02:59]}  Qxf6 {[%clk 0:02:54]} 10. Bg3 {[%clk 0:02:58]}  O-O {[%clk 0:02:50]} 11. O-O {[%clk 0:02:58]}  Nd4 {[%clk 0:02:39]} 12. Nxd4 {[%clk 0:02:58]}  Bxd4 {[%clk 0:02:38]} 13. Qh5 {[%clk 0:02:58]}  g6 {[%clk 0:02:28]} 14. Qe2 {[%clk 0:02:58]}  Nc5 {[%clk 0:02:19]} 15. Rae1 {[%clk 0:02:57]}  Bd7 {[%clk 0:02:10]} 16. Be5 {[%clk 0:02:57]}  Bxe5 {[%clk 0:02:07]} 17. Qxe5 {[%clk 0:02:58]}  Qxe5 {[%clk 0:02:03]} 18. Rxe5 {[%clk 0:02:58]}  Nxd3 {[%clk 0:02:03]} 19. cxd3 {[%clk 0:02:58]}  Rac8 {[%clk 0:01:54]} 20. d4 {[%clk 0:02:47]}  Rc4 {[%clk 0:01:44]} 21. Rd1 {[%clk 0:02:43]}  Rf4 {[%clk 0:01:30]} 22. Ne2 {[%clk 0:02:40]}  Rf8 {[%clk 0:01:09]} 23. Rd2 {[%clk 0:02:39]}  Rfc8 {[%clk 0:01:07]} 24. f3 {[%clk 0:02:33]}  Rc2 {[%clk 0:01:07]} 25. Rxc2 {[%clk 0:02:22]}  Rxc2 {[%clk 0:01:07]} 26. Nf4 {[%clk 0:02:15]}  Rxb2 {[%clk 0:01:04]} 27. Nxe6 {[%clk 0:02:11]}  Bxe6 {[%clk 0:01:04]} 28. Rxe6 {[%clk 0:02:11]}  Rxa2 {[%clk 0:01:03]} 29. Rd6 {[%clk 0:02:10]}  Ra5 {[%clk 0:01:00]} 30. Rd7 {[%clk 0:02:03]}  Rb5 {[%clk 0:01:00]} 31. Kf2 {[%clk 0:01:58]}  a5 {[%clk 0:01:00]} 32. Ke3 {[%clk 0:01:49]}  a4 {[%clk 0:01:00]} 33. Rd8+ {[%clk 0:01:44]}  Kf7 {[%clk 0:00:58]} 34. Ra8 {[%clk 0:01:43]}  Rb3+ {[%clk 0:00:56]} 35. Kf4 {[%clk 0:01:43]}  b5 {[%clk 0:00:45]} 36. Ke5 {[%clk 0:01:39]}  a3 {[%clk 0:00:43]} 37. Ra7+ {[%clk 0:01:37]}  Ke8 {[%clk 0:00:28]} 38. Ke6 {[%clk 0:01:34]}  Re3+ {[%clk 0:00:21]} 39. Kxd5 {[%clk 0:01:33]}  b4 {[%clk 0:00:22]} 40. Kc4 {[%clk 0:01:30]}  b3 {[%clk 0:00:15]} 41. Rxa3 {[%clk 0:01:29]}  b2 {[%clk 0:00:15]} 42. Rxe3+ {[%clk 0:01:29]}  Kf7 {[%clk 0:00:11]} 43. Rb3 {[%clk 0:01:28]} 1-0


[Site "https://www.chess.com"]

[Event "Titled Tuesday Blitz August 22 Early 2023"]
[White "Dwilewicz, Katarzyna"]
[Black "campochess"]
[WhiteFideId "1148486"]
[WhiteElo "2419"]
[BlackElo "2193"]
[Result "1-0"]
[Round "9"]
[TimeControl "180+1"]
[Date "2023.08.22"]
[WhiteClock "0:00:07"]
[BlackClock "0:00:00"]
[Board "130"]

1. e4 {[%clk 0:03:00]}  c5 {[%clk 0:02:57]} 2. Nf3 {[%clk 0:03:00]}  Nc6 {[%clk 0:02:57]} 3. c3 {[%clk 0:02:58]}  e6 {[%clk 0:02:55]} 4. d4 {[%clk 0:02:58]}  cxd4 {[%clk 0:02:55]} 5. cxd4 {[%clk 0:02:58]}  d5 {[%clk 0:02:55]} 6. e5 {[%clk 0:02:59]}  Bb4+ {[%clk 0:02:38]} 7. Bd2 {[%clk 0:02:57]}  Bxd2+ {[%clk 0:02:36]} 8. Qxd2 {[%clk 0:02:57]}  Nge7 {[%clk 0:02:35]} 9. Nc3 {[%clk 0:02:57]}  a6 {[%clk 0:02:33]} 10. Bd3 {[%clk 0:02:56]}  h6 {[%clk 0:02:31]} 11. O-O {[%clk 0:02:56]}  Bd7 {[%clk 0:02:30]} 12. Rac1 {[%clk 0:02:55]}  Rc8 {[%clk 0:02:29]} 13. b3 {[%clk 0:02:52]}  O-O {[%clk 0:02:29]} 14. Na4 {[%clk 0:02:50]}  Rc7 {[%clk 0:02:16]} 15. Nc5 {[%clk 0:02:46]}  Bc8 {[%clk 0:02:16]} 16. Rc2 {[%clk 0:02:45]}  f6 {[%clk 0:02:08]} 17. exf6 {[%clk 0:02:39]}  Rxf6 {[%clk 0:02:07]} 18. Re1 {[%clk 0:02:39]}  Qd6 {[%clk 0:02:03]} 19. Qe3 {[%clk 0:02:30]}  Nf5 {[%clk 0:02:02]} 20. Bxf5 {[%clk 0:02:29]}  exf5 {[%clk 0:01:52]} 21. Ne5 {[%clk 0:02:18]}  f4 {[%clk 0:01:49]} 22. Qd2 {[%clk 0:02:06]}  Bf5 {[%clk 0:01:47]} 23. Rc3 {[%clk 0:02:03]}  Bc8 {[%clk 0:01:25]} 24. f3 {[%clk 0:01:40]}  b6 {[%clk 0:01:24]} 25. Na4 {[%clk 0:01:34]}  Ne7 {[%clk 0:01:19]} 26. Rec1 {[%clk 0:01:30]}  Rxc3 {[%clk 0:01:17]} 27. Qxc3 {[%clk 0:01:29]}  Bf5 {[%clk 0:01:16]} 28. Qc7 {[%clk 0:01:24]}  Qe6 {[%clk 0:01:05]} 29. Qd8+ {[%clk 0:00:56]}  Rf8 {[%clk 0:01:00]} 30. Qxb6 {[%clk 0:00:55]}  Qxb6 {[%clk 0:00:50]} 31. Nxb6 {[%clk 0:00:56]}  Be6 {[%clk 0:00:37]} 32. Na4 {[%clk 0:00:45]}  Nf5 {[%clk 0:00:37]} 33. Nc6 {[%clk 0:00:38]}  Bd7 {[%clk 0:00:33]} 34. Nb6 {[%clk 0:00:19]}  Bxc6 {[%clk 0:00:33]} 35. Rxc6 {[%clk 0:00:20]}  Nxd4 {[%clk 0:00:32]} 36. Rd6 {[%clk 0:00:16]}  Re8 {[%clk 0:00:29]} 37. Rxd5 {[%clk 0:00:12]}  Ne2+ {[%clk 0:00:29]} 38. Kf2 {[%clk 0:00:11]}  Nc3 {[%clk 0:00:29]} 39. Rd2 {[%clk 0:00:10]}  Re6 {[%clk 0:00:26]} 40. Nd5 {[%clk 0:00:09]}  Rd6 {[%clk 0:00:22]} 41. Ne7+ {[%clk 0:00:08]}  Kf7 {[%clk 0:00:21]} 42. Rxd6 {[%clk 0:00:09]}  Kxe7 {[%clk 0:00:21]} 43. Rxa6 {[%clk 0:00:10]}  h5 {[%clk 0:00:18]} 44. a4 {[%clk 0:00:09]}  g5 {[%clk 0:00:18]} 45. b4 {[%clk 0:00:09]}  Nd5 {[%clk 0:00:16]} 46. b5 {[%clk 0:00:08]}  g4 {[%clk 0:00:12]} 47. Rh6 {[%clk 0:00:08]}  Nc3 {[%clk 0:00:10]} 48. Rxh5 {[%clk 0:00:06]}  gxf3 {[%clk 0:00:08]} 49. Kxf3 {[%clk 0:00:05]}  Nxa4 {[%clk 0:00:08]} 50. Kxf4 {[%clk 0:00:05]}  Kf6 {[%clk 0:00:07]} 51. Rd5 {[%clk 0:00:05]}  Nc3 {[%clk 0:00:07]} 52. Rd6+ {[%clk 0:00:05]}  Ke7 {[%clk 0:00:06]} 53. Rb6 {[%clk 0:00:04]}  Nd5+ {[%clk 0:00:05]} 54. Ke5 {[%clk 0:00:05]}  Nxb6 {[%clk 0:00:05]} 55. g4 {[%clk 0:00:05]}  Kf7 {[%clk 0:00:04]} 56. h4 {[%clk 0:00:06]}  Kg6 {[%clk 0:00:04]} 57. Kd6 {[%clk 0:00:06]}  Nc4+ {[%clk 0:00:03]} 58. Kc5 {[%clk 0:00:06]}  Ne5 {[%clk 0:00:00]} 59. b6 {[%clk 0:00:07]} 1-0


[Site "https://www.chess.com"]